fUST/lending_fUST_20250702
["ID","MTS","AMOUNT","RATE_DAILY","PERIOD"]
[369040042,1751442638701,-460.0,0.00016438,2]
[369040044,1751442638710,-463.64439017,0.00016438,2]
[369040045,1751442638719,-460.0,0.00016438,2]
[369040047,1751442638728,-460.0,0.00016438,2]
[369040049,1751442638738,-457.19490599,0.00016438,2]
[369040051,1751442638747,-460.0,0.00016438,2]
[369040053,1751442638756,-463.73520515,0.00016438,2]
[369040055,1751442638765,-460.0,0.00016438,2]
[369040057,1751442638775,-460.0,0.00016438,2]
[369040059,1751442638784,-460.0,0.00016438,2]
[369040061,1751442638793,-807.12,0.00016438,2]
[369040063,1751442638803,-733.16,0.00016438,2]
[369040065,1751442638812,-460.0,0.00016438,2]
[369040067,1751442638821,-460.0,0.00016438,2]
[369040069,1751442638830,-460.0,0.00016438,2]
[369040071,1751442638839,-1274.83,0.00016438,2]
[369040073,1751442638849,-460.0,0.00016438,2]
[369040075,1751442638859,-309.72760043,0.00016438,2]
[369040077,1751442638868,-460.0,0.00016438,2]
[369040079,1751442638877,-460.0,0.00016438,2]
[369040081,1751442638886,-460.0,0.00016438,2]
[369040083,1751442638895,-460.0,0.00016438,2]
[369040085,1751442638905,-463.45030882,0.00016438,2]
[369040087,1751442638915,-460.0,0.00016438,2]
[369040088,1751442638924,-460.0,0.00016438,2]
[369040089,1751442638934,-1276.21,0.00016438,2]
[369040090,1751442638943,-460.0,0.00016438,2]
[369040091,1751442638952,-2371.65,0.00016438,2]
[369040092,1751442638962,-500.0,0.00016438,2]
[369040093,1751442638971,-460.0,0.00016438,2]
[369040094,1751442638981,-460.0,0.00016438,2]
[369040095,1751442638990,-79.38856586,0.00016438,2]
[369040096,1751442639003,-380.61143414,0.00016438,2]
[369040097,1751442639013,-460.0,0.00016438,2]
[369040098,1751442639022,-460.0,0.00016438,2]
[369040099,1751442639031,-460.0,0.00016438,2]
[369040100,1751442639040,-531.15,0.00016438,2]
[369040101,1751442639049,-464.309464,0.00016438,2]
[369040102,1751442639059,-460.0,0.00016438,2]
[369040103,1751442639068,-3095.79,0.00016438,2]
[369040104,1751442639077,-41.61997376,0.00016438,2]
[369040105,1751442639089,-458.38002624,0.00016438,2]
[369040106,1751442639098,-500.0,0.00016438,2]
[369040107,1751442639108,-500.0,0.00016438,2]
[369040108,1751442639117,-500.0,0.00016438,2]
[369040109,1751442639126,-164.2,0.00016438,2]
[369040110,1751442639135,-16.75691947,0.00016438,2]
[369040111,1751442639147,-443.24308053,0.00016438,2]
[369040112,1751442639156,-553.84,0.00016438,2]
[369040113,1751442639165,-986.88,0.00016438,2]
[369040114,1751442639174,-460.0,0.00016438,2]
[369040115,1751442639184,-460.0,0.00016438,2]
[369040116,1751442639332,-460.0,0.00016438,2]
[369040117,1751442639343,-502.83,0.00016438,2]
[369040118,1751442639353,-574.26,0.00016438,2]
[369040119,1751442639362,-460.0,0.00016438,2]
[369040120,1751442639372,-460.0,0.00016438,2]
[369040121,1751442639381,-460.0,0.00016438,2]
[369040122,1751442639391,-460.0,0.00016438,2]
[369040123,1751442639400,-460.0,0.00016438,2]
[369040124,1751442639409,-460.0,0.00016438,2]
[369040125,1751442639419,-552.3,0.00016438,2]
[369040126,1751442639428,-535.0,0.00016438,2]
[369040127,1751442639438,-350.0,0.00016438,2]
[369040128,1751442639447,-460.0,0.00016438,2]
[369040129,1751442639456,-460.0,0.00016438,2]
[369040130,1751442639466,-568.99,0.00016438,2]
[369040131,1751442639475,-460.0,0.00016438,2]
[369040132,1751442639485,-927.68,0.00016438,2]
[369040133,1751442639494,-5985.19,0.00016438,2]
[369040134,1751442639504,-1384.58,0.00016438,2]
[369040135,1751442639513,-460.0,0.00016438,2]
[369040136,1751442639523,-460.0,0.00016438,2]
[369040137,1751442639533,-1895.86,0.00016438,2]
[369040138,1751442639543,-460.0,0.00016438,2]
[369040139,1751442639552,-460.0,0.00016438,2]
[369040140,1751442639561,-460.0,0.00016438,2]
[369040141,1751442639571,-460.0,0.00016438,2]
[369040142,1751442639581,-460.0,0.00016438,2]
[369040143,1751442639593,-460.0,0.00016438,2]
[369040145,1751442639603,-460.0,0.00016438,2]
[369040147,1751442639612,-460.0,0.00016438,2]
[369040148,1751442639621,-460.0,0.00016438,2]
[369040150,1751442639632,-460.0,0.00016438,2]
[369040152,1751442639640,-1397.95,0.00016438,2]
[369040154,1751442639649,-464.7567339,0.00016438,2]
[369040156,1751442639659,-1747.11,0.00016438,2]
[369040158,1751442639671,-248.7687539,0.00016438,2]
[369040160,1751442639680,-257.06925294,0.00016438,2]
[369040163,1751442639703,-202.93074706,0.00016438,2]
[369040165,1751442639712,-460.0,0.00016438,2]
[369040167,1751442639721,-460.0,0.00016438,2]
[369040169,1751442639730,-115.81390901,0.00016438,2]
[369040171,1751442639742,-344.18609099,0.00016438,2]
[369040173,1751442639751,-638.12,0.00016438,2]
[369040175,1751442639762,-294.17890904,0.00016438,2]
[369040178,1751442639774,-165.82109096,0.00016438,2]
[369040179,1751442639783,-460.0,0.00016438,2]
[369040181,1751442639792,-500.0,0.00016438,2]
[369040183,1751442639802,-166.0,0.00016438,2]
[369040185,1751442639811,-187.72859494,0.00016473,2]
[369040187,1751442639821,-500.0,0.00016473,2]
[369040189,1751442639830,-500.0,0.00016473,2]
[369040191,1751442639839,-500.0,0.00016473,2]
[369040193,1751442639849,-500.0,0.00016473,2]
[369040195,1751442639858,-500.21396602,0.00016473,2]
[369040197,1751442639868,-500.0,0.00016473,2]
[369040199,1751442639877,-500.77605557,0.00016473,2]
[369040201,1751442639886,-46.92488506,0.00016473,2]
[369040204,1751442639898,-287.70733921,0.00016473,2]
[369040206,1751442639912,-165.99638224,0.00016473,2]
[369040208,1751442639922,-249.04907076,0.00016473,2]
[369040210,1751442639934,-250.95092924,0.00016473,2]
[369040212,1751442639944,-180.00746982,0.00016473,2]
[369040214,1751442639953,-500.0,0.00016473,2]
[369040216,1751442639962,-500.0,0.00016473,2]
[369040218,1751442639972,-500.0,0.00016473,2]
[369040220,1751442639982,-501.36245357,0.00016473,2]
[369040222,1751442639991,-467.53797399,0.00016473,2]
[369040224,1751442640001,-309.78369465,0.00016473,2]
[369040226,1751442640010,-500.0,0.00016473,2]
[369040228,1751442640020,-757.36515216,0.00016612,2]
[369040230,1751442640029,-1729.5878364,0.00016688,2]
[369040232,1751442640039,-460.0,0.00016712,2]
[369040234,1751442640050,-259.40644674,0.00016712,2]
[369040236,1751442640060,-404.69058943,0.00016712,2]
[369040238,1751442640072,-66.14327032,0.00016712,2]
[369040240,1751442640081,-460.0,0.00016712,2]
[369040242,1751442640090,-151.0,0.00016712,2]
[369040244,1751442640100,-151.0,0.00016712,2]
[369040246,1751442640109,-460.0,0.00016712,2]
[369040248,1751442640119,-463.93424586,0.00016712,2]
[369040250,1751442640128,-460.0,0.00016712,2]
[369040252,1751442640137,-775.610455,0.00016712,2]
[369040254,1751442640147,-460.0,0.00016712,2]
[369040256,1751442640156,-775.610455,0.00016712,2]
[369040258,1751442640167,-460.0,0.00016712,2]
[369040259,1751442640177,-196.44658967,0.00016712,2]
[369040288,1751442640834,-400.0,0.00016438,2]
[369040289,1751442640846,-165.88,0.00016438,2]
[369040290,1751442640855,-196.55,0.00016438,2]
[369040749,1751442646228,-545.2,0.00016438,2]
[369040752,1751442646240,-570.63,0.00016438,2]
[369040754,1751442646252,-263.55341033,0.00016712,2]
[369040756,1751442646265,-493.63272826,0.00016712,2]
[369040757,1751442646278,-460.0,0.00016712,2]
[369040758,1751442646289,-460.0,0.00016712,2]
[369040761,1751442646301,-312.37,0.00016712,2]
[369040763,1751442646313,-460.0,0.00016712,2]
[369040765,1751442646325,-460.0,0.00016712,2]
[369040767,1751442646338,-460.0,0.00016712,2]
[369040769,1751442646349,-460.0,0.00016712,2]
[369040772,1751442646360,-460.0,0.00016712,2]
[369040773,1751442646371,-176.053222,0.00016712,2]
[369040774,1751442646383,-176.053222,0.00016712,2]
[369040775,1751442646396,-460.0,0.00016712,2]
[369040776,1751442646407,-460.0,0.00016712,2]
[369040777,1751442646418,-384.98290986,0.00016712,2]
[369040779,1751442646430,-460.0,0.00016712,2]
[369040781,1751442646442,-335.43495897,0.00016712,2]
[369040783,1751442646456,-124.56504103,0.00016712,2]
[369040786,1751442646467,-413.50178922,0.00016712,2]
[369040788,1751442646479,-460.0,0.00016712,2]
[369040790,1751442646489,-173.33274018,0.00016712,2]
[369040796,1751442646537,-59.46152061,0.00016712,2]
[369040800,1751442646569,-227.20573921,0.00016712,2]
[369040803,1751442646581,-460.0,0.00016712,2]
[369040805,1751442646595,-460.0,0.00016712,2]
[369040807,1751442646607,-798.910393,0.00016712,2]
[369040810,1751442646619,-798.910393,0.00016712,2]
[369040812,1751442646632,-460.0,0.00016712,2]
[369040814,1751442646643,-460.0,0.00016712,2]
[369040816,1751442646656,-460.0,0.00016712,2]
[369040818,1751442646668,-460.0,0.00016712,2]
[369040820,1751442646678,-210.25643716,0.00016712,2]
[369040822,1751442646690,-473.53107335,0.00016712,2]
[369040825,1751442646700,-460.0,0.00016712,2]
[369040827,1751442646710,-460.0,0.00016712,2]
[369040829,1751442646722,-460.0,0.00016712,2]
[369040831,1751442646733,-460.0,0.00016712,2]
[369040833,1751442646744,-460.0,0.00016712,2]
[369040836,1751442646757,-483.8118529,0.00016712,2]
[369040838,1751442646769,-549.64,0.00016712,2]
[369040840,1751442646780,-764.66,0.00016712,2]
[369040842,1751442646791,-460.0,0.00016712,2]
[369040844,1751442646800,-460.0,0.00016712,2]
[369040846,1751442646811,-460.0,0.00016712,2]
[369040848,1751442646823,-460.0,0.00016712,2]
[369040851,1751442646833,-177.54259246,0.00016712,2]
[369040853,1751442646847,-185.3024153,0.00016712,2]
[369040855,1751442646858,-460.0,0.00016712,2]
[369040857,1751442646869,-465.82620549,0.00016712,2]
[369040859,1751442646879,-464.98179583,0.00016712,2]
[369040861,1751442646890,-208.42216414,0.00016712,2]
[369040864,1751442646907,-251.57783586,0.00016712,2]
[369040866,1751442646918,-460.0,0.00016712,2]
[369040868,1751442646928,-460.0,0.00016712,2]
[369040871,1751442646939,-388.88942048,0.00016712,2]
[369040874,1751442646957,-71.11057952,0.00016712,2]
[369040876,1751442646967,-460.0,0.00016712,2]
[369040878,1751442646978,-460.0,0.00016712,2]
[369040880,1751442646990,-5.35770614,0.00016712,2]
[369040882,1751442647004,-371.48318948,0.00016712,2]
[369041050,1751442821539,10000.0,0.00015513,2]
[369041056,1751442836002,660.0,0.000161,2]
[369041057,1751442873991,531.810182,0.00027397,120]
[369041059,1751442937792,4849.95214871,0.000171,6]
[369041060,1751442971980,517.961988,0.00013699,2]
[369041063,1751443224195,10000.0,0.00027,120]
[369041064,1751443226286,5000.0,0.00027,120]
[369041065,1751443228177,8000.0,0.00027,120]
[369041066,1751443229966,24900.0,0.00015447,2]
[369041067,1751443230164,1200.0,0.00027,120]
[369041068,1751443231735,200.0,0.00024525,120]
[369041069,1751443232141,5400.0,0.00027,120]
[369041070,1751443233566,5800.0,0.00027,120]
[369041071,1751443235371,5600.0,0.00027,120]
[369041072,1751443239155,1800.0,0.00027,120]
[369041073,1751443241680,5000.0,0.00027,120]
[369041074,1751443242416,5000.0,0.00027,120]
[369041075,1751443242744,1800.0,0.00027,120]
[369041076,1751443243097,5000.0,0.00027,120]
[369041077,1751443243954,5000.0,0.00027,120]
[369041078,1751443244017,2000.0,0.00014,120]
[369041079,1751443244865,5000.0,0.00027,120]
[369041080,1751443245785,5000.0,0.00027,120]
[369041081,1751443266907,2699.97,0.00027,120]
[369041082,1751443271026,6000.0,0.00027,120]
[369041083,1751443271958,6000.0,0.00027,120]
[369041084,1751443274333,8000.0,0.00027,120]
[369041085,1751443276066,7000.0,0.00027,120]
[369041086,1751443277922,6000.0,0.00027,120]
[369041087,1751443278646,6000.0,0.00027,120]
[369041088,1751443279818,6000.0,0.00027,120]
[369041089,1751443281348,7000.0,0.00027,120]
[369041090,1751443284995,5000.0,0.00027,120]
[369041091,1751443285749,5000.0,0.00027,120]
[369041092,1751443286940,5000.0,0.00027,120]
[369041093,1751443302397,166.0,0.000273,120]
[369041094,1751443309069,5000.0,0.00027,120]
[369041095,1751443309397,3000.0,0.00024,60]
[369041096,1751443310026,3000.0,0.00024,60]
[369041097,1751443310379,3000.0,0.00024,60]
[369041098,1751443310766,3000.0,0.00024,60]
[369041099,1751443311190,3000.0,0.00024,60]
[369041100,1751443313734,166.0,0.000273,120]
[369041101,1751443333833,5000.0,0.00024,60]
[369041102,1751443334823,5000.0,0.00024,60]
[369041103,1751443335304,5000.0,0.00024,60]
[369041104,1751443335668,5000.0,0.00024,60]
[369041105,1751443343776,3000.0,0.00024,60]
[369041106,1751443344527,3000.0,0.00024,60]
[369041107,1751443345276,3000.0,0.00024,60]
[369041108,1751443346086,3000.0,0.00024,60]
[369041109,1751443346342,166.0,0.000273,120]
[369041110,1751443346745,3000.0,0.00024,60]
[369041111,1751443347324,3000.0,0.00024,60]
[369041112,1751443349722,5000.0,0.00027,120]
[369041113,1751443350757,200.0,0.00025754,120]
[369041114,1751443358142,-242.23530072,0.00016338,2]
[369041115,1751443379473,168.55812031,0.000273,120]
[369041116,1751443410918,200.0,0.0002454,120]
[369041117,1751443471230,200.0,0.00025369,120]
[369041118,1751443480375,234.64384754,0.00015945,2]
[369041119,1751443490853,966.120132,0.00015438,2]
[369041120,1751443520976,3500.0,0.000161,2]
[369041121,1751443531523,200.0,0.00024802,120]
[369041122,1751443567572,926.0,0.00027397,120]
[369041123,1751443590745,200.0,0.00025476,120]
[369041124,1751443625157,-827.04077085,0.00016338,2]
[369041125,1751443625179,-1200.0,0.00016426,2]
[369041126,1751443625201,-300.0,0.00016426,2]
[369041127,1751443625222,-300.0,0.00016427,2]
[369041128,1751443625243,-300.0,0.00016427,2]
[369041129,1751443625267,-300.0,0.00016427,2]
[369041130,1751443625290,-1200.0,0.00016427,2]
[369041131,1751443625314,-408.20672344,0.00016428,2]
[369041132,1751443625338,-879.24550856,0.00016428,3]
[369041133,1751443641136,-249.03449144,0.00016428,3]
[369041134,1751443641158,-564.14,0.00016428,3]
[369041135,1751443641179,-282.07,0.00016428,3]
[369041136,1751443641201,-846.21,0.00016428,3]
[369041137,1751443641224,-867.19,0.00016428,3]
[369041138,1751443641247,-475.06532773,0.00016437,2]
[369041139,1751443641270,-500.0,0.00016437,2]
[369041140,1751443641292,-572.70241082,0.00016437,2]
[369041141,1751443641314,-412.98034895,0.00016438,2]
[369041142,1751443641335,-159.7894581,0.00016438,2]
[369041143,1751443641356,-579.61225319,0.00016438,2]
[369041144,1751443641378,-460.0,0.00016438,2]
[369041145,1751443641403,-233.33919349,0.00016438,2]
[369041146,1751443642094,-226.66080651,0.00016438,2]
[369041147,1751443642116,-501.41438909,0.00016438,2]
[369041148,1751443642136,-337.36496104,0.00016438,2]
[369041149,1751443642158,-460.0,0.00016438,2]
[369041150,1751443642178,-150.027769,0.00016438,2]
[369041151,1751443642199,-510.44115163,0.00016438,2]
[369041152,1751443642220,-471.99,0.00016438,2]
[369041153,1751443642240,-404.52945119,0.00016438,2]
[369041154,1751443642261,-460.0,0.00016438,2]
[369041155,1751443642281,-460.0,0.00016438,2]
[369041156,1751443642302,-448.12580538,0.00016438,2]
[369041157,1751443649185,-11.87419462,0.00016438,2]
[369041158,1751443649206,-574.440394,0.00016438,2]
[369041159,1751443649226,-460.0,0.00016438,2]
[369041160,1751443649246,-540.76324555,0.00016438,2]
[369041161,1751443649266,-26.31665346,0.00016438,2]
[369041162,1751443651319,200.0,0.00023887,120]
[369041163,1751443710941,200.0,0.00025242,120]
[369041164,1751443770780,200.0,0.00025055,120]
[369041165,1751443830578,200.0,0.0002459,120]
[369041192,1751443832915,-773.62642882,0.00016337,2]
[369041194,1751443832925,-209.48950614,0.00016337,2]
[369041211,1751443833083,-90.51049386,0.00016337,2]
[369041213,1751443833093,-300.0,0.00016337,2]
[369041215,1751443833102,-101.77332101,0.00016337,2]
[369041336,1751443839221,-198.22667899,0.00016337,2]
[369041337,1751443839231,-1200.0,0.00016337,2]
[369041338,1751443839241,-213.16394554,0.00016337,2]
[369041339,1751443839250,-723.66067452,0.00016338,2]
[369041340,1751443839260,-49367.53449842,0.00016338,2]
[369041341,1751443839275,-320632.46550158,0.00016338,2]
[369041342,1751443839285,-25000.0,0.00016428,2]
[369041343,1751443839295,-5000.0,0.00016428,2]
[369041344,1751443839304,-19358.33849298,0.00016428,2]
[369041345,1751443839314,-1500.0,0.00016428,2]
[369041346,1751443839324,-3376.04650275,0.00016428,2]
[369041347,1751443839333,-1500.0,0.00016428,2]
[369041348,1751443839343,-690.642,0.00016428,2]
[369041349,1751443839352,-1500.0,0.00016428,2]
[369041350,1751443839361,-1500.0,0.00016428,2]
[369041351,1751443839370,-1500.0,0.00016428,2]
[369041352,1751443839380,-1500.0,0.00016428,2]
[369041353,1751443839389,-1500.0,0.00016428,2]
[369041354,1751443839398,-1500.0,0.00016428,2]
[369041355,1751443839407,-1500.0,0.00016428,2]
[369041356,1751443839416,-1500.0,0.00016428,2]
[369041358,1751443839426,-469.85040026,0.00016428,2]
[369041360,1751443839435,-1500.0,0.00016428,2]
[369041362,1751443839444,-1500.0,0.00016428,2]
[369041364,1751443839454,-1500.0,0.00016428,2]
[369041366,1751443839463,-1500.0,0.00016428,2]
[369041367,1751443839472,-207.4,0.00016428,2]
[369041368,1751443839482,-462.790081,0.00016438,2]
[369041369,1751443839492,-460.0,0.00016438,2]
[369041370,1751443839501,-460.0,0.00016438,2]
[369041371,1751443839511,-467.8832219,0.00016438,2]
[369041372,1751443839520,-460.0,0.00016438,2]
[369041373,1751443839529,-246.333005,0.00016438,2]
[369041374,1751443839539,-460.0,0.00016438,2]
[369041375,1751443839548,-460.0,0.00016438,2]
[369041376,1751443839558,-549.26166299,0.00016438,2]
[369041377,1751443839567,-460.0,0.00016438,2]
[369041378,1751443839576,-315.69260314,0.00016438,2]
[369041379,1751443839586,-460.0,0.00016438,2]
[369041380,1751443839595,-460.0,0.00016438,2]
[369041381,1751443839605,-347.00363523,0.00016438,2]
[369041382,1751443839614,-460.0,0.00016438,2]
[369041383,1751443839623,-460.0,0.00016438,2]
[369041384,1751443839633,-460.0,0.00016438,2]
[369041385,1751443839643,-447.27166971,0.00016438,2]
[369041386,1751443839653,-460.0,0.00016438,2]
[369041387,1751443839662,-264.2709024,0.00016438,2]
[369041388,1751443839671,-460.0,0.00016438,2]
[369041389,1751443839681,-460.0,0.00016438,2]
[369041390,1751443839690,-460.0,0.00016438,2]
[369041391,1751443839699,-430.0,0.00016438,2]
[369041392,1751443839709,-461.23190914,0.00016438,2]
[369041393,1751443839718,-460.0,0.00016438,2]
[369041394,1751443839728,-460.0,0.00016438,2]
[369041395,1751443839738,-580.27777324,0.00016438,2]
[369041396,1751443839747,-406.81670028,0.00016438,2]
[369041397,1751443839757,-460.0,0.00016438,2]
[369041398,1751443839767,-460.0,0.00016438,2]
[369041399,1751443839776,-460.0,0.00016438,2]
[369041400,1751443839786,-460.0,0.00016438,2]
[369041401,1751443839796,-460.0,0.00016438,2]
[369041402,1751443839806,-460.0,0.00016438,2]
[369041403,1751443839815,-460.0,0.00016438,2]
[369041404,1751443839825,-460.0,0.00016438,2]
[369041405,1751443839835,-466.47988938,0.00016438,2]
[369041406,1751443839847,-460.0,0.00016438,2]
[369041407,1751443839857,-460.0,0.00016438,2]
[369041408,1751443839867,-460.0,0.00016438,2]
[369041409,1751443839877,-540.95113274,0.00016438,2]
[369041410,1751443839887,-460.0,0.00016438,2]
[369041411,1751443839897,-460.0,0.00016438,2]
[369041412,1751443839908,-460.0,0.00016438,2]
[369041413,1751443839918,-460.0,0.00016438,2]
[369041414,1751443839928,-460.0,0.00016438,2]
[369041415,1751443839938,-460.0,0.00016438,2]
[369041416,1751443839947,-794.32,0.00016438,2]
[369041417,1751443839957,-463.36957731,0.00016438,2]
[369041418,1751443839967,-460.0,0.00016438,2]
[369041419,1751443839978,-468.54,0.00016438,2]
[369041420,1751443839988,-392.40777971,0.00016438,2]
[369041421,1751443839997,-460.0,0.00016438,2]
[369041422,1751443840007,-460.0,0.00016438,2]
[369041423,1751443840018,-460.0,0.00016438,2]
[369041424,1751443840030,-460.0,0.00016438,2]
[369041425,1751443840039,-460.0,0.00016438,2]
[369041426,1751443840049,-460.0,0.00016438,2]
[369041427,1751443840059,-460.0,0.00016438,2]
[369041428,1751443840070,-460.0,0.00016438,2]
[369041429,1751443840079,-460.0,0.00016438,2]
[369041430,1751443840089,-460.0,0.00016438,2]
[369041431,1751443840098,-460.0,0.00016438,2]
[369041432,1751443840108,-462.18208483,0.00016438,2]
[369041433,1751443840117,-460.0,0.00016438,2]
[369041434,1751443840127,-850.98,0.00016438,2]
[369041435,1751443840136,-460.0,0.00016438,2]
[369041436,1751443840146,-460.0,0.00016438,2]
[369041437,1751443840155,-460.0,0.00016438,2]
[369041438,1751443840166,-460.0,0.00016438,2]
[369041439,1751443840175,-464.71620347,0.00016438,2]
[369041440,1751443840185,-460.0,0.00016438,2]
[369041441,1751443840195,-568.63,0.00016438,2]
[369041442,1751443840204,-460.0,0.00016438,2]
[369041443,1751443840214,-460.0,0.00016438,2]
[369041445,1751443840223,-460.0,0.00016438,2]
[369041446,1751443840233,-460.0,0.00016438,2]
[369041448,1751443840242,-460.0,0.00016438,2]
[369041449,1751443840252,-460.0,0.00016438,2]
[369041450,1751443840262,-464.93852007,0.00016438,2]
[369041451,1751443840272,-460.0,0.00016438,2]
[369041452,1751443840282,-460.0,0.00016438,2]
[369041453,1751443840292,-460.0,0.00016438,2]
[369041454,1751443840301,-460.0,0.00016438,2]
[369041455,1751443840311,-159.77531525,0.00016438,2]
[369041456,1751443840320,-460.0,0.00016438,2]
[369041457,1751443840330,-460.0,0.00016438,2]
[369041458,1751443840340,-460.0,0.00016438,2]
[369041459,1751443840348,-460.0,0.00016438,2]
[369041460,1751443840358,-460.0,0.00016438,2]
[369041461,1751443840368,-460.0,0.00016438,2]
[369041462,1751443840377,-461.45890988,0.00016438,2]
[369041463,1751443840387,-460.0,0.00016438,2]
[369041464,1751443840396,-460.0,0.00016438,2]
[369041465,1751443840406,-460.0,0.00016438,2]
[369041466,1751443840416,-460.0,0.00016438,2]
[369041467,1751443840425,-460.0,0.00016438,2]
[369041468,1751443840434,-460.0,0.00016438,2]
[369041469,1751443840444,-460.0,0.00016438,2]
[369041470,1751443840454,-460.0,0.00016438,2]
[369041471,1751443840463,-460.0,0.00016438,2]
[369041472,1751443840473,-460.0,0.00016438,2]
[369041473,1751443840482,-460.0,0.00016438,2]
[369041474,1751443840492,-460.0,0.00016438,2]
[369041475,1751443840502,-460.0,0.00016438,2]
[369041476,1751443840511,-460.0,0.00016438,2]
[369041477,1751443840521,-585.95850354,0.00016438,2]
[369041478,1751443840530,-460.0,0.00016438,2]
[369041479,1751443840540,-317.0258629,0.00016438,2]
[369041480,1751443840549,-460.0,0.00016438,2]
[369041481,1751443840559,-460.0,0.00016438,2]
[369041482,1751443840569,-500.0,0.00016438,2]
[369041483,1751443840579,-460.0,0.00016438,2]
[369041484,1751443840588,-546.89549641,0.00016438,2]
[369041485,1751443840598,-460.0,0.00016438,2]
[369041486,1751443840607,-460.0,0.00016438,2]
[369041487,1751443840616,-460.0,0.00016438,2]
[369041488,1751443840626,-460.0,0.00016438,2]
[369041489,1751443840635,-460.0,0.00016438,2]
[369041490,1751443840644,-460.0,0.00016438,2]
[369041491,1751443840653,-460.0,0.00016438,2]
[369041493,1751443840663,-460.0,0.00016438,2]
[369041495,1751443840672,-469.98822484,0.00016438,2]
[369041497,1751443840682,-460.0,0.00016438,2]
[369041499,1751443840691,-460.0,0.00016438,2]
[369041501,1751443840700,-562.69032814,0.00016438,2]
[369041503,1751443840710,-460.0,0.00016438,2]
[369041505,1751443840720,-553.74,0.00016438,2]
[369041507,1751443840729,-460.0,0.00016438,2]
[369041509,1751443840739,-460.0,0.00016438,2]
[369041511,1751443840750,-460.0,0.00016438,2]
[369041513,1751443840760,-332.74467165,0.00016438,2]
[369041515,1751443840779,-460.0,0.00016438,2]
[369041516,1751443840790,-500.0,0.00016438,2]
[369041517,1751443840800,-460.0,0.00016438,2]
[369041518,1751443840810,-460.0,0.00016438,2]
[369041519,1751443840819,-835.56,0.00016438,2]
[369041520,1751443840830,-460.0,0.00016438,2]
[369041521,1751443840839,-460.0,0.00016438,2]
[369041522,1751443840849,-460.0,0.00016438,2]
[369041523,1751443840859,-768.71,0.00016438,2]
[369041524,1751443840869,-398.41415267,0.00016438,2]
[369041525,1751443840878,-460.0,0.00016438,2]
[369041526,1751443840888,-460.0,0.00016438,2]
[369041527,1751443840897,-460.0,0.00016438,2]
[369041528,1751443840907,-460.0,0.00016438,2]
[369041529,1751443840916,-460.0,0.00016438,2]
[369041530,1751443840926,-460.0,0.00016438,2]
[369041531,1751443840935,-460.0,0.00016438,2]
[369041532,1751443840944,-460.0,0.00016438,2]
[369041533,1751443840954,-460.0,0.00016438,2]
[369041535,1751443840964,-460.0,0.00016438,2]
[369041536,1751443840977,-460.0,0.00016438,2]
[369041537,1751443840986,-535.08,0.00016438,2]
[369041539,1751443840996,-460.0,0.00016438,2]
[369041542,1751443841006,-380.99545961,0.00016438,2]